[Event "Titled Tuesday Blitz December 27 Late 2022"]
[White "Weisz, Bryan"]
[Black "Moreno Perez, Tobias Sebastian"]
[WhiteFideId "30934133"]
[BlackFideId "186716"]
[WhiteElo "1973"]
[BlackElo "2256"]
[Result "1-0"]
[Round "09"]
[TimeControl "180+2"]
[Date "2022.12.27"]
[WhiteClock "0:00:08"]
[BlackClock "0:00:03"]

1. e4 {[%clk 0:03:00]}  c6 {[%clk 0:02:56]} 2. d4 {[%clk 0:03:00]}  d5 {[%clk 0:02:57]} 3. e5 {[%clk 0:02:48]}  Bf5 {[%clk 0:02:56]} 4. Bd3 {[%clk 0:02:44]}  Bxd3 {[%clk 0:02:55]} 5. Qxd3 {[%clk 0:02:44]}  e6 {[%clk 0:02:56]} 6. Ne2 {[%clk 0:02:40]}  Nd7 {[%clk 0:02:53]} 7. Nd2 {[%clk 0:02:39]}  Ne7 {[%clk 0:02:53]} 8. Nf3 {[%clk 0:02:39]}  c5 {[%clk 0:02:53]} 9. c3 {[%clk 0:02:38]}  Nc6 {[%clk 0:02:53]} 10. O-O {[%clk 0:02:28]}  Be7 {[%clk 0:02:47]} 11. a3 {[%clk 0:02:07]}  O-O {[%clk 0:02:45]} 12. b4 {[%clk 0:02:07]}  cxd4 {[%clk 0:02:46]} 13. cxd4 {[%clk 0:02:05]}  Rc8 {[%clk 0:02:46]} 14. Bd2 {[%clk 0:01:58]}  Nb6 {[%clk 0:02:46]} 15. b5 {[%clk 0:01:48]}  Nb8 {[%clk 0:02:37]} 16. Bb4 {[%clk 0:01:43]}  Nc4 {[%clk 0:02:36]} 17. Rfc1 {[%clk 0:01:25]}  Nd7 {[%clk 0:02:30]} 18. Nd2 {[%clk 0:01:16]}  Ndb6 {[%clk 0:01:51]} 19. Bxe7 {[%clk 0:01:06]}  Qxe7 {[%clk 0:01:48]} 20. a4 {[%clk 0:01:06]}  Nxd2 {[%clk 0:01:46]} 21. Qxd2 {[%clk 0:01:05]}  Nc4 {[%clk 0:01:46]} 22. Qd3 {[%clk 0:00:46]}  Qg5 {[%clk 0:01:39]} 23. f4 {[%clk 0:00:37]}  Qg6 {[%clk 0:01:37]} 24. Qxg6 {[%clk 0:00:35]}  hxg6 {[%clk 0:01:38]} 25. Rc3 {[%clk 0:00:29]}  Nb2 {[%clk 0:01:01]} 26. Rb3 {[%clk 0:00:19]}  Nc4 {[%clk 0:01:00]} 27. Kf2 {[%clk 0:00:12]}  b6 {[%clk 0:01:00]} 28. Rc1 {[%clk 0:00:08]}  Rc7 {[%clk 0:00:58]} 29. Rbc3 {[%clk 0:00:08]}  Ra8 {[%clk 0:00:57]} 30. Ng1 {[%clk 0:00:08]}  a6 {[%clk 0:00:56]} 31. Nf3 {[%clk 0:00:06]}  axb5 {[%clk 0:00:56]} 32. axb5 {[%clk 0:00:06]}  Ra2+ {[%clk 0:00:57]} 33. Kg1 {[%clk 0:00:03]}  Rca7 {[%clk 0:00:57]} 34. Rd3 {[%clk 0:00:01]}  R7a5 {[%clk 0:00:53]} 35. Ne1 {[%clk 0:00:01]}  Rxb5 {[%clk 0:00:53]} 36. Rdc3 {[%clk 0:00:02]}  Rbb2 {[%clk 0:00:52]} 37. Rd3 {[%clk 0:00:01]}  b5 {[%clk 0:00:50]} 38. Rdc3 {[%clk 0:00:02]}  Rd2 {[%clk 0:00:49]} 39. Rg3 {[%clk 0:00:03]}  b4 {[%clk 0:00:46]} 40. Rb3 {[%clk 0:00:03]}  Rdb2 {[%clk 0:00:46]} 41. Rb1 {[%clk 0:00:04]}  Rxb1 {[%clk 0:00:32]} 42. Rxb1 {[%clk 0:00:05]}  Ra4 {[%clk 0:00:22]} 43. Nd3 {[%clk 0:00:05]}  Ne3 {[%clk 0:00:03]} 44. Rxb4 {[%clk 0:00:03]}  Ra2 {[%clk 0:00:03]} 45. Nf2 {[%clk 0:00:03]}  Ra1+ {[%clk 0:00:03]} 46. Nd1 {[%clk 0:00:03]}  Rxd1+ {[%clk 0:00:02]} 47. Kf2 {[%clk 0:00:04]}  Nc4 {[%clk 0:00:03]} 48. Rb8+ {[%clk 0:00:04]}  Kh7 {[%clk 0:00:03]} 49. h4 {[%clk 0:00:04]}  Rd2+ {[%clk 0:00:03]} 50. Kf3 {[%clk 0:00:04]}  Rxd4 {[%clk 0:00:03]} 51. Rf8 {[%clk 0:00:04]}  Rd3+ {[%clk 0:00:03]} 52. Kf2 {[%clk 0:00:05]}  Rd2+ {[%clk 0:00:02]} 53. Kf3 {[%clk 0:00:05]}  Nb2 {[%clk 0:00:02]} 54. Rxf7 {[%clk 0:00:06]}  Nd3 {[%clk 0:00:02]} 55. g4 {[%clk 0:00:03]}  Nc5 {[%clk 0:00:01]} 56. h5 {[%clk 0:00:03]}  gxh5 {[%clk 0:00:02]} 57. gxh5 {[%clk 0:00:03]}  Ne4 {[%clk 0:00:03]} 58. h6 {[%clk 0:00:04]}  Kxh6 {[%clk 0:00:03]} 59. Re7 {[%clk 0:00:05]}  Nc5 {[%clk 0:00:01]} 60. Rxe6+ {[%clk 0:00:05]}  Kh7 {[%clk 0:00:02]} 61. Rd6 {[%clk 0:00:05]}  Rd3+ {[%clk 0:00:02]} 62. Ke2 {[%clk 0:00:06]}  Rd4 {[%clk 0:00:02]} 63. f5 {[%clk 0:00:05]}  Ne4 {[%clk 0:00:01]} 64. Rd7 {[%clk 0:00:05]}  Rd2+ {[%clk 0:00:02]} 65. Kf3 {[%clk 0:00:05]}  Rh2 {[%clk 0:00:02]} 66. e6 {[%clk 0:00:05]}  Ng5+ {[%clk 0:00:02]} 67. Kf4 {[%clk 0:00:06]}  Nh3+ {[%clk 0:00:02]} 68. Ke5 {[%clk 0:00:06]}  Re2+ {[%clk 0:00:02]} 69. Kxd5 {[%clk 0:00:07]}  Nf4+ {[%clk 0:00:01]} 70. Kc6 {[%clk 0:00:07]}  Nxe6 {[%clk 0:00:01]} 71. fxe6 {[%clk 0:00:06]}  Rxe6+ {[%clk 0:00:02]} 72. Kd5 {[%clk 0:00:07]}  Re1 {[%clk 0:00:02]} 73. Rf7 {[%clk 0:00:07]}  Kh6 {[%clk 0:00:02]} 74. Rf8 {[%clk 0:00:07]}  g5 {[%clk 0:00:03]} 75. Rg8 {[%clk 0:00:07]}  Kh5 {[%clk 0:00:03]} 76. Kd4 {[%clk 0:00:08]}  Kg4 {[%clk 0:00:03]} 77. Kd3 {[%clk 0:00:08]}  Re7 {[%clk 0:00:03]} 78. Rg7 {[%clk 0:00:09]}  Kh4 {[%clk 0:00:03]} 79. Rxe7 {[%clk 0:00:09]}  g4 {[%clk 0:00:03]} 80. Ke2 {[%clk 0:00:09]}  Kh3 {[%clk 0:00:02]} 81. Kf1 {[%clk 0:00:10]}  Kg3 {[%clk 0:00:02]} 82. Rg7 {[%clk 0:00:09]}  Kf3 {[%clk 0:00:02]} 83. Kg1 {[%clk 0:00:09]}  Kg3 {[%clk 0:00:02]} 84. Rf7 {[%clk 0:00:09]}  Kh3 {[%clk 0:00:02]} 85. Rf4 {[%clk 0:00:08]}  Kg3 {[%clk 0:00:02]} 86. Ra4 {[%clk 0:00:09]}  Kh3 {[%clk 0:00:02]} 87. Ra3+ {[%clk 0:00:08]}  g3 {[%clk 0:00:03]} 88. Rb3 {[%clk 0:00:08]} 1-0


[Site "https://www.chess.com"]

[Event "Titled Tuesday Blitz December 27 Late 2022"]
[White "Xiong, Jeffery"]
[Black "Kazakouski, Valery"]
[WhiteFideId "2047640"]
[BlackFideId "13507443"]
[WhiteElo "2692"]
[BlackElo "2539"]
[Result "0-1"]
[Round "09"]
[TimeControl "180+2"]
[Date "2022.12.27"]
[WhiteClock "0:00:01"]
[BlackClock "0:00:07"]

1. e4 {[%clk 0:03:00]}  c5 {[%clk 0:02:59]} 2. Nf3 {[%clk 0:03:01]}  a6 {[%clk 0:03:00]} 3. g3 {[%clk 0:02:59]}  b5 {[%clk 0:03:00]} 4. d4 {[%clk 0:02:58]}  cxd4 {[%clk 0:02:58]} 5. Nxd4 {[%clk 0:02:57]}  Bb7 {[%clk 0:02:59]} 6. Bg2 {[%clk 0:02:57]}  Nf6 {[%clk 0:02:59]} 7. Nc3 {[%clk 0:02:47]}  e6 {[%clk 0:02:55]} 8. O-O {[%clk 0:02:46]}  b4 {[%clk 0:02:55]} 9. Na4 {[%clk 0:02:08]}  Bxe4 {[%clk 0:02:55]} 10. Bxe4 {[%clk 0:02:08]}  Nxe4 {[%clk 0:02:56]} 11. Re1 {[%clk 0:02:05]}  Nc5 {[%clk 0:02:56]} 12. c4 {[%clk 0:01:29]}  Nxa4 {[%clk 0:02:52]} 13. Qxa4 {[%clk 0:01:30]}  Qb6 {[%clk 0:02:50]} 14. Be3 {[%clk 0:01:24]}  Bc5 {[%clk 0:02:49]} 15. Rad1 {[%clk 0:01:10]}  O-O {[%clk 0:02:48]} 16. Nb3 {[%clk 0:01:09]}  Bxe3 {[%clk 0:02:38]} 17. Rxe3 {[%clk 0:01:10]}  a5 {[%clk 0:02:38]} 18. Red3 {[%clk 0:01:09]}  f5 {[%clk 0:02:33]} 19. Rd6 {[%clk 0:01:08]}  Qc7 {[%clk 0:02:34]} 20. Qb5 {[%clk 0:01:03]}  Ra7 {[%clk 0:02:08]} 21. Nc5 {[%clk 0:01:00]}  Rf7 {[%clk 0:01:46]} 22. Rb6 {[%clk 0:00:39]}  Rf8 {[%clk 0:01:34]} 23. Rbd6 {[%clk 0:00:39]}  Rf7 {[%clk 0:01:16]} 24. b3 {[%clk 0:00:33]}  h6 {[%clk 0:01:15]} 25. Rb6 {[%clk 0:00:29]}  Rf8 {[%clk 0:01:15]} 26. Rbd6 {[%clk 0:00:28]}  Rf7 {[%clk 0:00:57]} 27. R1d2 {[%clk 0:00:22]}  f4 {[%clk 0:00:57]} 28. Ne4 {[%clk 0:00:20]}  Nc6 {[%clk 0:00:49]} 29. Qh5 {[%clk 0:00:20]}  a4 {[%clk 0:00:38]} 30. Kg2 {[%clk 0:00:16]}  axb3 {[%clk 0:00:38]} 31. axb3 {[%clk 0:00:17]}  f3+ {[%clk 0:00:38]} 32. Kh3 {[%clk 0:00:18]}  Qc8 {[%clk 0:00:31]} 33. R6d3 {[%clk 0:00:14]}  Qf8 {[%clk 0:00:25]} 34. Nd6 {[%clk 0:00:12]}  Rf6 {[%clk 0:00:25]} 35. c5 {[%clk 0:00:12]}  Ra5 {[%clk 0:00:20]} 36. Re3 {[%clk 0:00:08]}  Kh7 {[%clk 0:00:18]} 37. Qe8 {[%clk 0:00:05]}  Rxc5 {[%clk 0:00:12]} 38. Qxf8 {[%clk 0:00:02]}  Rxf8 {[%clk 0:00:13]} 39. Ne4 {[%clk 0:00:01]}  Rh5+ {[%clk 0:00:11]} 40. Kg4 {[%clk 0:00:02]}  Rff5 {[%clk 0:00:12]} 41. h4 {[%clk 0:00:01]}  Ne5+ {[%clk 0:00:07]} 42. Kh3 {[%clk 0:00:02]}  g5 {[%clk 0:00:08]} 43. Nd6 {[%clk 0:00:01]}  g4+ {[%clk 0:00:06]} 44. Kh2 {[%clk 0:00:02]}  Rf8 {[%clk 0:00:06]} 45. Rd4 {[%clk 0:00:02]}  Rg8 {[%clk 0:00:05]} 46. Rxb4 {[%clk 0:00:02]}  Nc6 {[%clk 0:00:06]} 47. Rb7 {[%clk 0:00:02]}  Rd5 {[%clk 0:00:05]} 48. Rxd7+ {[%clk 0:00:02]}  Rg7 {[%clk 0:00:05]} 49. Rxg7+ {[%clk 0:00:02]}  Kxg7 {[%clk 0:00:06]} 50. Rxe6 {[%clk 0:00:01]}  Rd2 {[%clk 0:00:07]} 0-1


[Site "https://www.chess.com"]

[Event "Titled Tuesday Blitz December 27 Late 2022"]
[White "Adewumi, Tanitoluwa"]
[Black "Shapiro, Daniel"]
[WhiteFideId "30966396"]
[BlackFideId "2001780"]
[WhiteElo "2283"]
[BlackElo "2284"]
[Result "1-0"]
[Round "10"]
[TimeControl "180+2"]
[Date "2022.12.27"]
[WhiteClock "0:00:30"]
[BlackClock "0:00:03"]

1. e4 {[%clk 0:02:59]}  e5 {[%clk 0:03:00]} 2. Nf3 {[%clk 0:02:58]}  Nc6 {[%clk 0:03:00]} 3. Nc3 {[%clk 0:02:53]}  Nf6 {[%clk 0:02:58]} 4. Bb5 {[%clk 0:02:53]}  Bb4 {[%clk 0:02:57]} 5. O-O {[%clk 0:02:44]}  O-O {[%clk 0:02:50]} 6. Bxc6 {[%clk 0:02:34]}  dxc6 {[%clk 0:02:28]} 7. Nxe5 {[%clk 0:02:16]}  Bxc3 {[%clk 0:02:02]} 8. dxc3 {[%clk 0:02:04]}  Qxd1 {[%clk 0:02:00]} 9. Rxd1 {[%clk 0:02:05]}  Nxe4 {[%clk 0:01:58]} 10. f3 {[%clk 0:02:05]}  Nd6 {[%clk 0:01:53]} 11. Bf4 {[%clk 0:02:01]}  Bf5 {[%clk 0:01:50]} 12. Nd3 {[%clk 0:01:29]}  Rad8 {[%clk 0:01:21]} 13. Rac1 {[%clk 0:00:49]}  b6 {[%clk 0:00:39]} 14. Nb4 {[%clk 0:00:41]}  c5 {[%clk 0:00:19]} 15. Nd5 {[%clk 0:00:40]}  Be6 {[%clk 0:00:07]} 16. Nxc7 {[%clk 0:00:38]}  Nc4 {[%clk 0:00:06]} 17. b3 {[%clk 0:00:36]}  Na3 {[%clk 0:00:03]} 18. Bd6 {[%clk 0:00:30]} 1-0


[Site "https://www.chess.com"]

[Event "Titled Tuesday Blitz December 27 Late 2022"]
[White "Antonova, Nadezhda"]
[Black "Mitrovic, Darko R"]
[WhiteFideId "14700182"]
[BlackFideId "927023"]
[WhiteElo "1945"]
[BlackElo "2220"]
[Result "1-0"]
[Round "10"]
[TimeControl "180+2"]
[Date "2022.12.27"]
[WhiteClock "0:02:08"]
[BlackClock "0:01:31"]

1. d4 {[%clk 0:02:59]}  Nf6 {[%clk 0:02:50]} 2. c4 {[%clk 0:02:59]}  e6 {[%clk 0:02:48]} 3. g3 {[%clk 0:02:57]}  Bb4+ {[%clk 0:02:48]} 4. Bd2 {[%clk 0:02:55]}  Bxd2+ {[%clk 0:02:48]} 5. Qxd2 {[%clk 0:02:52]}  d6 {[%clk 0:02:44]} 6. Bg2 {[%clk 0:02:51]}  O-O {[%clk 0:02:11]} 7. Nc3 {[%clk 0:02:47]}  Nc6 {[%clk 0:02:11]} 8. Nf3 {[%clk 0:02:43]}  Kh8 {[%clk 0:01:59]} 9. O-O {[%clk 0:02:42]}  Ne5 {[%clk 0:01:59]} 10. dxe5 {[%clk 0:02:40]}  Ne4 {[%clk 0:02:00]} 11. Nxe4 {[%clk 0:02:40]}  Qh4 {[%clk 0:02:01]} 12. Nxh4 {[%clk 0:02:38]}  d5 {[%clk 0:02:01]} 13. cxd5 {[%clk 0:02:36]}  f6 {[%clk 0:02:01]} 14. exf6 {[%clk 0:02:34]}  Re8 {[%clk 0:01:58]} 15. fxg7+ {[%clk 0:02:31]}  Kg8 {[%clk 0:01:57]} 16. Nf6+ {[%clk 0:02:30]}  Kf7 {[%clk 0:01:57]} 17. Nxe8 {[%clk 0:02:27]}  Bd7 {[%clk 0:01:56]} 18. Qf4+ {[%clk 0:02:24]}  Ke7 {[%clk 0:01:53]} 19. Qf8+ {[%clk 0:02:23]}  Kd8 {[%clk 0:01:53]} 20. g8=Q {[%clk 0:02:22]}  c6 {[%clk 0:01:51]} 21. Qd6 {[%clk 0:02:13]}  Rb8 {[%clk 0:01:35]} 22. Qg5+ {[%clk 0:02:09]}  Kc8 {[%clk 0:01:31]} 23. Qc7# {[%clk 0:02:08]} 1-0


[Site "https://www.chess.com"]

[Event "Titled Tuesday Blitz December 27 Late 2022"]
[White "Bambino Filho, Antonio Carlos"]
[Black "Kobo, Ori"]
[WhiteFideId "2113163"]
[BlackFideId "2812320"]
[WhiteElo "2144"]
[BlackElo "2559"]
[Result "0-1"]
[Round "10"]
[TimeControl "180+2"]
[Date "2022.12.27"]
[WhiteClock "0:00:22"]
[BlackClock "0:00:18"]

1. e4 {[%clk 0:03:00]}  e5 {[%clk 0:03:00]} 2. Nf3 {[%clk 0:03:01]}  Nc6 {[%clk 0:03:00]} 3. Bc4 {[%clk 0:03:01]}  Bc5 {[%clk 0:02:59]} 4. O-O {[%clk 0:03:01]}  d6 {[%clk 0:02:58]} 5. c3 {[%clk 0:03:00]}  Bb6 {[%clk 0:02:59]} 6. d3 {[%clk 0:02:59]}  h6 {[%clk 0:02:58]} 7. a4 {[%clk 0:02:58]}  a5 {[%clk 0:02:56]} 8. Nbd2 {[%clk 0:02:57]}  Nge7 {[%clk 0:02:56]} 9. Bb3 {[%clk 0:02:49]}  O-O {[%clk 0:02:56]} 10. Nc4 {[%clk 0:02:50]}  Ba7 {[%clk 0:02:54]} 11. Be3 {[%clk 0:02:50]}  Kh8 {[%clk 0:02:34]} 12. Bxa7 {[%clk 0:02:48]}  Rxa7 {[%clk 0:02:35]} 13. Ne3 {[%clk 0:02:43]}  f5 {[%clk 0:02:33]} 14. exf5 {[%clk 0:02:43]}  Nxf5 {[%clk 0:02:33]} 15. Nxf5 {[%clk 0:02:41]}  Bxf5 {[%clk 0:02:33]} 16. h3 {[%clk 0:02:33]}  Qf6 {[%clk 0:02:24]} 17. Bd5 {[%clk 0:02:31]}  Ne7 {[%clk 0:02:18]} 18. Be4 {[%clk 0:02:30]}  Ng6 {[%clk 0:01:57]} 19. Bxf5 {[%clk 0:02:19]}  Qxf5 {[%clk 0:01:58]} 20. Nh2 {[%clk 0:02:04]}  Nf4 {[%clk 0:01:55]} 21. d4 {[%clk 0:02:05]}  exd4 {[%clk 0:01:46]} 22. cxd4 {[%clk 0:01:59]}  Ra6 {[%clk 0:01:46]} 23. Kh1 {[%clk 0:01:20]}  Rb6 {[%clk 0:01:39]} 24. b3 {[%clk 0:01:17]}  Qd5 {[%clk 0:01:37]} 25. f3 {[%clk 0:01:14]}  Rxb3 {[%clk 0:01:33]} 26. Rc1 {[%clk 0:01:14]}  c6 {[%clk 0:01:30]} 27. Ng4 {[%clk 0:01:13]}  Rb4 {[%clk 0:01:27]} 28. Re1 {[%clk 0:01:05]}  Rxd4 {[%clk 0:01:25]} 29. Qc2 {[%clk 0:01:02]}  Rd2 {[%clk 0:01:24]} 30. Qc3 {[%clk 0:01:02]}  Rd3 {[%clk 0:01:12]} 31. Qb2 {[%clk 0:00:59]}  Rb3 {[%clk 0:01:01]} 32. Qc2 {[%clk 0:00:59]}  Qd3 {[%clk 0:00:50]} 33. Qf2 {[%clk 0:00:55]}  Qf5 {[%clk 0:00:45]} 34. Qh4 {[%clk 0:00:44]}  Qg5 {[%clk 0:00:31]} 35. Qg3 {[%clk 0:00:39]}  Rb2 {[%clk 0:00:28]} 36. Rg1 {[%clk 0:00:26]}  h5 {[%clk 0:00:25]} 37. h4 {[%clk 0:00:25]}  Qg6 {[%clk 0:00:21]} 38. Rc4 {[%clk 0:00:23]}  Ne2 {[%clk 0:00:19]} 39. Qxd6 {[%clk 0:00:22]}  Qxd6 {[%clk 0:00:18]} 0-1


[Site "https://www.chess.com"]

[Event "Titled Tuesday Blitz December 27 Late 2022"]
[White "Battlecruiser_Operational"]
[Black "Wang, Alexander J"]
[BlackFideId "30955270"]
[WhiteElo "2417"]
[BlackElo "1815"]
[Result "1-0"]
[Round "10"]
[TimeControl "180+2"]
[Date "2022.12.27"]
[WhiteClock "0:01:34"]
[BlackClock "0:01:56"]

1. d4 {[%clk 0:03:00]}  d5 {[%clk 0:02:59]} 2. c4 {[%clk 0:02:56]}  e6 {[%clk 0:02:59]} 3. Nc3 {[%clk 0:02:56]}  c5 {[%clk 0:02:59]} 4. cxd5 {[%clk 0:02:53]}  exd5 {[%clk 0:03:00]} 5. Nf3 {[%clk 0:02:52]}  Nc6 {[%clk 0:03:00]} 6. e3 {[%clk 0:02:52]}  Nf6 {[%clk 0:02:59]} 7. Bb5 {[%clk 0:02:52]}  Bd7 {[%clk 0:02:58]} 8. O-O {[%clk 0:02:51]}  a6 {[%clk 0:02:57]} 9. Bxc6 {[%clk 0:02:49]}  Bxc6 {[%clk 0:02:58]} 10. Ne5 {[%clk 0:02:49]}  Be7 {[%clk 0:02:57]} 11. Nxc6 {[%clk 0:02:43]}  bxc6 {[%clk 0:02:58]} 12. dxc5 {[%clk 0:02:42]}  Bxc5 {[%clk 0:02:58]} 13. b3 {[%clk 0:02:42]}  O-O {[%clk 0:02:58]} 14. Bb2 {[%clk 0:02:42]}  Be7 {[%clk 0:02:58]} 15. Rc1 {[%clk 0:02:37]}  Qd7 {[%clk 0:02:57]} 16. Qd3 {[%clk 0:02:34]}  Rfd8 {[%clk 0:02:53]} 17. Rfd1 {[%clk 0:02:34]}  c5 {[%clk 0:02:38]} 18. Na4 {[%clk 0:02:27]}  Qb5 {[%clk 0:02:33]} 19. Bxf6 {[%clk 0:02:16]}  Bxf6 {[%clk 0:02:26]} 20. Rxc5 {[%clk 0:02:10]}  Qxd3 {[%clk 0:02:25]} 21. Rxd3 {[%clk 0:02:11]}  d4 {[%clk 0:02:24]} 22. e4 {[%clk 0:02:01]}  Rac8 {[%clk 0:02:22]} 23. g3 {[%clk 0:01:47]}  Rxc5 {[%clk 0:02:18]} 24. Nxc5 {[%clk 0:01:48]}  Rc8 {[%clk 0:02:18]} 25. Nxa6 {[%clk 0:01:45]}  Ra8 {[%clk 0:02:03]} 26. Nb4 {[%clk 0:01:43]}  Rc8 {[%clk 0:01:59]} 27. Nd5 {[%clk 0:01:40]}  Rc2 {[%clk 0:01:57]} 28. a4 {[%clk 0:01:36]}  h5 {[%clk 0:01:56]} 29. Nxf6+ {[%clk 0:01:35]}  gxf6 {[%clk 0:01:56]} 30. Rxd4 {[%clk 0:01:35]}  Rb2 {[%clk 0:01:56]} 31. Rb4 {[%clk 0:01:34]} 1-0


[Site "https://www.chess.com"]

[Event "Titled Tuesday Blitz December 27 Late 2022"]
[White "Bogaudinov, Rushan"]
[Black "Ronka, Erik"]
[WhiteFideId "4129288"]
[BlackFideId "505080"]
[WhiteElo "1939"]
[BlackElo "2276"]
[Result "0-1"]
[Round "10"]
[TimeControl "180+2"]
[Date "2022.12.27"]
[WhiteClock "0:00:09"]
[BlackClock "0:00:06"]

1. a3 {[%clk 0:02:57]}  g6 {[%clk 0:02:57]} 2. d4 {[%clk 0:02:55]}  Bg7 {[%clk 0:02:57]} 3. e3 {[%clk 0:02:54]}  d6 {[%clk 0:02:56]} 4. c4 {[%clk 0:02:53]}  f5 {[%clk 0:02:50]} 5. h4 {[%clk 0:02:52]}  Nf6 {[%clk 0:02:49]} 6. Be2 {[%clk 0:02:52]}  e5 {[%clk 0:02:47]} 7. h5 {[%clk 0:02:50]}  O-O {[%clk 0:02:45]} 8. hxg6 {[%clk 0:02:46]}  hxg6 {[%clk 0:02:46]} 9. Nc3 {[%clk 0:02:42]}  Nc6 {[%clk 0:02:29]} 10. Nf3 {[%clk 0:02:35]}  Ng4 {[%clk 0:02:19]} 11. dxe5 {[%clk 0:02:12]}  dxe5 {[%clk 0:02:16]} 12. Qxd8 {[%clk 0:01:58]}  Nxd8 {[%clk 0:02:09]} 13. e4 {[%clk 0:01:49]}  c6 {[%clk 0:02:02]} 14. b4 {[%clk 0:01:39]}  Ne6 {[%clk 0:02:00]} 15. Bb2 {[%clk 0:01:34]}  Nd4 {[%clk 0:01:58]} 16. Ng5 {[%clk 0:01:25]}  Nc2+ {[%clk 0:01:46]} 17. Kf1 {[%clk 0:01:23]}  Nxa1 {[%clk 0:01:47]} 18. Bxa1 {[%clk 0:01:23]}  Bf6 {[%clk 0:01:21]} 19. Nf3 {[%clk 0:01:07]}  Be6 {[%clk 0:01:18]} 20. Bb2 {[%clk 0:00:42]}  Rad8 {[%clk 0:01:17]} 21. Ke1 {[%clk 0:00:41]}  Kf7 {[%clk 0:01:12]} 22. Nd2 {[%clk 0:00:38]}  Rh8 {[%clk 0:01:06]} 23. Rxh8 {[%clk 0:00:37]}  Rxh8 {[%clk 0:01:07]} 24. Bxg4 {[%clk 0:00:37]}  fxg4 {[%clk 0:01:08]} 25. Ke2 {[%clk 0:00:35]}  Bg5 {[%clk 0:01:08]} 26. Ncb1 {[%clk 0:00:31]}  Rh2 {[%clk 0:01:03]} 27. g3 {[%clk 0:00:28]}  Rh1 {[%clk 0:00:57]} 28. Bxe5 {[%clk 0:00:26]}  Rc1 {[%clk 0:00:49]} 29. Kd3 {[%clk 0:00:22]}  b5 {[%clk 0:00:41]} 30. cxb5 {[%clk 0:00:22]}  cxb5 {[%clk 0:00:42]} 31. Bb2 {[%clk 0:00:21]}  Bc4+ {[%clk 0:00:36]} 32. Kd4 {[%clk 0:00:16]}  Rc2 {[%clk 0:00:10]} 33. Bc3 {[%clk 0:00:16]}  Ba2 {[%clk 0:00:09]} 34. Kd3 {[%clk 0:00:13]}  Bxb1 {[%clk 0:00:09]} 35. Nxb1 {[%clk 0:00:14]}  Rxf2 {[%clk 0:00:10]} 36. Nd2 {[%clk 0:00:12]}  Bxd2 {[%clk 0:00:09]} 37. Bxd2 {[%clk 0:00:12]}  Rf3+ {[%clk 0:00:10]} 38. Kd4 {[%clk 0:00:12]}  Rxg3 {[%clk 0:00:10]} 39. Kc5 {[%clk 0:00:12]}  Rxa3 {[%clk 0:00:10]} 40. Kxb5 {[%clk 0:00:12]}  g3 {[%clk 0:00:11]} 41. Be1 {[%clk 0:00:12]}  g2 {[%clk 0:00:11]} 42. Bf2 {[%clk 0:00:12]}  Rf3 {[%clk 0:00:11]} 43. Bxa7 {[%clk 0:00:12]}  Ke6 {[%clk 0:00:07]} 44. Kc6 {[%clk 0:00:11]}  Rf4 {[%clk 0:00:08]} 45. b5 {[%clk 0:00:09]}  Rxe4 {[%clk 0:00:07]} 46. Bg1 {[%clk 0:00:07]}  Re1 {[%clk 0:00:07]} 47. Bh2 {[%clk 0:00:06]}  Rc1+ {[%clk 0:00:06]} 48. Kb7 {[%clk 0:00:06]}  Kd7 {[%clk 0:00:06]} 49. b6 {[%clk 0:00:06]}  Rh1 {[%clk 0:00:05]} 50. Ka8 {[%clk 0:00:03]}  Rxh2 {[%clk 0:00:05]} 51. b7 {[%clk 0:00:04]}  Rh8+ {[%clk 0:00:05]} 52. Ka7 {[%clk 0:00:05]}  g1=Q+ {[%clk 0:00:05]} 53. Ka6 {[%clk 0:00:05]}  Qa1+ {[%clk 0:00:06]} 54. Kb5 {[%clk 0:00:05]}  Qb2+ {[%clk 0:00:06]} 55. Kc4 {[%clk 0:00:05]}  Qc2+ {[%clk 0:00:06]} 56. Kd5 {[%clk 0:00:06]}  Rb8 {[%clk 0:00:06]} 57. Ke5 {[%clk 0:00:06]}  Rxb7 {[%clk 0:00:06]} 58. Kf6 {[%clk 0:00:07]}  Rb6+ {[%clk 0:00:06]} 59. Kg5 {[%clk 0:00:07]}  Qf5+ {[%clk 0:00:06]} 60. Kh6 {[%clk 0:00:08]}  Qh5+ {[%clk 0:00:06]} 61. Kg7 {[%clk 0:00:08]}  g5 {[%clk 0:00:06]} 62. Kf8 {[%clk 0:00:08]}  Qh8+ {[%clk 0:00:05]} 63. Kf7 {[%clk 0:00:09]}  Qh7+ {[%clk 0:00:06]} 64. Kf8 {[%clk 0:00:09]}  Rf6# {[%clk 0:00:06]} 0-1


[Site "https://www.chess.com"]

[Event "Titled Tuesday Blitz December 27 Late 2022"]
[White "Bryakin, Mikhail"]
[Black "Sourath Biswas"]
[WhiteFideId "4165314"]
[BlackFideId "35091484"]
[WhiteElo "2455"]
[BlackElo "2281"]
[Result "1-0"]
[Round "10"]
[TimeControl "180+2"]
[Date "2022.12.27"]
[WhiteClock "0:00:50"]
[BlackClock "0:00:01"]

1. b3 {[%clk 0:02:44]}  e5 {[%clk 0:02:51]} 2. Bb2 {[%clk 0:02:44]}  Nc6 {[%clk 0:02:52]} 3. e3 {[%clk 0:02:42]}  g6 {[%clk 0:02:49]} 4. c4 {[%clk 0:02:41]}  Bg7 {[%clk 0:02:50]} 5. Nc3 {[%clk 0:02:42]}  Nge7 {[%clk 0:02:49]} 6. Nge2 {[%clk 0:02:30]}  O-O {[%clk 0:02:49]} 7. g3 {[%clk 0:02:30]}  d5 {[%clk 0:02:49]} 8. Bg2 {[%clk 0:02:25]}  d4 {[%clk 0:02:49]} 9. Nd5 {[%clk 0:02:25]}  Be6 {[%clk 0:02:45]} 10. e4 {[%clk 0:02:21]}  f5 {[%clk 0:02:30]} 11. d3 {[%clk 0:02:18]}  Rf7 {[%clk 0:01:58]} 12. O-O {[%clk 0:02:16]}  Qd6 {[%clk 0:01:33]} 13. f4 {[%clk 0:02:13]}  fxe4 {[%clk 0:01:21]} 14. dxe4 {[%clk 0:02:12]}  Bg4 {[%clk 0:01:22]} 15. h3 {[%clk 0:02:05]}  Bxe2 {[%clk 0:01:17]} 16. Qxe2 {[%clk 0:02:06]}  exf4 {[%clk 0:01:16]} 17. gxf4 {[%clk 0:02:05]}  d3 {[%clk 0:01:09]} 18. Qd2 {[%clk 0:02:04]}  Nxd5 {[%clk 0:00:57]} 19. cxd5 {[%clk 0:01:59]}  Bxb2 {[%clk 0:00:34]} 20. Qxb2 {[%clk 0:01:59]}  Nb4 {[%clk 0:00:33]} 21. e5 {[%clk 0:01:32]}  Qc5+ {[%clk 0:00:22]} 22. Qf2 {[%clk 0:01:33]}  Qxf2+ {[%clk 0:00:20]} 23. Rxf2 {[%clk 0:01:34]}  Rd8 {[%clk 0:00:20]} 24. Rd1 {[%clk 0:01:31]}  Nxd5 {[%clk 0:00:15]} 25. Rxd3 {[%clk 0:01:29]}  c6 {[%clk 0:00:15]} 26. Bxd5 {[%clk 0:01:18]}  Rxd5 {[%clk 0:00:13]} 27. Rxd5 {[%clk 0:01:18]}  cxd5 {[%clk 0:00:14]} 28. Kg2 {[%clk 0:01:19]}  Kg7 {[%clk 0:00:12]} 29. Kg3 {[%clk 0:01:18]}  h6 {[%clk 0:00:11]} 30. Rd2 {[%clk 0:01:17]}  Rd7 {[%clk 0:00:10]} 31. Kg4 {[%clk 0:01:10]}  Kf7 {[%clk 0:00:10]} 32. f5 {[%clk 0:01:11]}  gxf5+ {[%clk 0:00:10]} 33. Kxf5 {[%clk 0:01:12]}  Ke7 {[%clk 0:00:11]} 34. Rg2 {[%clk 0:01:11]}  Kf8 {[%clk 0:00:11]} 35. Ke6 {[%clk 0:01:09]}  Rd8 {[%clk 0:00:11]} 36. Kf6 {[%clk 0:01:05]}  d4 {[%clk 0:00:10]} 37. e6 {[%clk 0:01:06]}  Rd6 {[%clk 0:00:09]} 38. Rf2 {[%clk 0:01:01]}  Ke8 {[%clk 0:00:07]} 39. Rg2 {[%clk 0:01:01]}  Kf8 {[%clk 0:00:07]} 40. Rf2 {[%clk 0:01:01]}  Ke8 {[%clk 0:00:06]} 41. Ke5 {[%clk 0:01:02]}  Rd8 {[%clk 0:00:06]} 42. Rg2 {[%clk 0:00:52]}  d3 {[%clk 0:00:07]} 43. Kf6 {[%clk 0:00:50]}  Kf8 {[%clk 0:00:01]} 44. e7+ {[%clk 0:00:50]} 1-0


[Site "https://www.chess.com"]